fUST/lending_fUST_20250607
["ID","MTS","AMOUNT","RATE_DAILY","PERIOD"]
[364818138,1749252646657,-1647.03,0.00022739,2]
[364818139,1749252646666,-667.33,0.00022739,2]
[364818140,1749252646675,-758.27,0.00022739,2]
[364818141,1749252646684,-196.31685595,0.00022739,2]
[364818142,1749252646697,-496.66314405,0.00022739,2]
[364818143,1749252646706,-901.41373904,0.00022739,2]
[364818144,1749252646735,-205.77626096,0.00022739,2]
[364818145,1749252646744,-587.0,0.00022742,2]
[364818146,1749252646753,-206.0,0.0002275,2]
[364818147,1749252646762,-316.0,0.000228,3]
[364818148,1749252646771,-220.04373904,0.000228,3]
[364818149,1749252646950,-0.0017448,0.000228,3]
[364818150,1749252647050,-440.0,0.00019178,2]
[364818151,1749252647060,-330.81411547,0.00019452,2]
[364818152,1749252647189,-151.0,0.00019178,2]
[364818153,1749252647199,-440.0,0.00019178,2]
[364818154,1749252647209,-430.0,0.00019178,2]
[364818155,1749252647218,-440.0,0.00019178,2]
[364818156,1749252647227,-109.18588453,0.00019452,2]
[364818157,1749252647237,-440.0,0.00019452,2]
[364818158,1749252647246,-440.0,0.00019726,2]
[364818159,1749252647256,-440.0,0.0002,2]
[364818160,1749252647266,-440.0,0.00020273,2]
[364818161,1749252647277,-440.0,0.00020547,2]
[364818162,1749252647287,-440.0,0.00020821,2]
[364818163,1749252647298,-440.0,0.00021095,2]
[364818164,1749252647308,-192.62,0.00021369,2]
[364818165,1749252647319,-95.95451616,0.000228,3]
[364818166,1749252647329,-316.0,0.000228,3]
[364818167,1749252647340,-316.0,0.000228,3]
[364818168,1749252647350,-316.0,0.000228,3]
[364818169,1749252647359,-316.0,0.000228,3]
[364818170,1749252647368,-316.0,0.000228,3]
[364818171,1749252647378,-316.0,0.000228,3]
[364818172,1749252647387,-316.0,0.000228,3]
[364818173,1749252647398,-316.0,0.000228,3]
[364818174,1749252647407,-316.0,0.000228,3]
[364818175,1749252647417,-316.0,0.000228,3]
[364818176,1749252647426,-316.0,0.000228,3]
[364818177,1749252647435,-316.0,0.000228,3]
[364818178,1749252647444,-316.0,0.000228,3]
[364818179,1749252647454,-316.0,0.000228,3]
[364818180,1749252647463,-316.0,0.000228,3]
[364818181,1749252647475,-326.13480106,0.000228,3]
[364818182,1749252647485,-160.0,0.000228,3]
[364818183,1749252647494,-151.0,0.000228,7]
[364818184,1749252647503,-151.0,0.000228,7]
[364818185,1749252647515,-1592.61610463,0.00022831,8]
[364818186,1749252647524,-151.0,0.00022876,7]
[364818187,1749252647535,-223.0315306,0.00022941,2]
[364818188,1749252647546,-1045.62,0.00023,7]
[364818189,1749252647556,-160.0,0.00023,3]
[364818190,1749252647565,-6546.26286056,0.00023,2]
[364818191,1749252647577,-6678.13213865,0.00023,2]
[364818192,1749252647588,-807.18846441,0.00023,2]
[364818193,1749252647603,-440.0,0.00019452,2]
[364818194,1749252647614,-540.60153559,0.00023,2]
[364818197,1749252717014,-263.54962736,0.00018899,2]
[364818198,1749252717038,-346.50973115,0.00018899,2]
[364818199,1749252717061,-300.0,0.00019177,2]
[364818200,1749252717086,-440.0,0.00019178,2]
[364818201,1749252717111,-440.0,0.00019178,2]
[364818202,1749252717135,-151.0,0.00019178,2]
[364818203,1749252717162,-440.0,0.00019178,2]
[364818204,1749252717186,-440.0,0.00019178,2]
[364818205,1749252717209,-440.0,0.00019178,2]
[364818206,1749252717232,-430.0,0.00019178,2]
[364818207,1749252717254,-440.0,0.00019178,2]
[364818208,1749252717276,-440.0,0.00019178,2]
[364818209,1749252717299,-450.0,0.00019178,2]
[364818210,1749252717321,-440.0,0.00019178,2]
[364818211,1749252717345,-440.0,0.00019178,2]
[364818212,1749252717366,-430.0,0.00019178,2]
[364818213,1749252717389,-440.0,0.00019178,2]
[364818214,1749252717411,-390.0,0.00019178,2]
[364818215,1749252717432,-440.0,0.00019178,2]
[364818216,1749252717456,-440.0,0.00019178,2]
[364818217,1749252717479,-440.0,0.00019178,2]
[364818218,1749252717503,-450.0,0.00019178,2]
[364818219,1749252717524,-420.0,0.00019178,2]
[364818220,1749252717547,-440.0,0.00019178,2]
[364818221,1749252717572,-300.0,0.00019451,2]
[364818222,1749252717597,-440.0,0.00019452,2]
[364818223,1749252717620,-440.0,0.00019452,2]
[364818224,1749252717643,-440.0,0.00019452,2]
[364818225,1749252717668,-151.0,0.00019452,2]
[364818226,1749252717689,-151.0,0.00019452,2]
[364818227,1749252717711,-151.0,0.00019452,2]
[364818228,1749252717732,-290.0,0.00019452,2]
[364818229,1749252717753,-360.0,0.00019452,2]
[364818230,1749252717775,-305.54,0.00019452,2]
[364818231,1749252717796,-391.61886442,0.00019452,2]
[364818232,1749252717819,-440.0,0.00019452,2]
[364818233,1749252717842,-440.0,0.00019452,2]
[364818234,1749252717864,-410.0,0.00019452,2]
[364818235,1749252718022,-440.0,0.00019452,2]
[364818236,1749252718049,-58.78177707,0.00019726,2]
[364818238,1749252764486,150.0,0.00016822,2]
[364818242,1749252833882,150.0,0.00016595,2]
[364818246,1749252864797,318.58519,0.00013699,2]
[364818252,1749253219525,10000.0,0.00024658,120]
[364818253,1749253229364,10000.0,0.00024658,120]
[364818254,1749253240219,10000.0,0.00021918,60]
[364818255,1749253249652,10000.0,0.00021918,60]
[364818257,1749253285903,10000.0,0.00018,2]
[364818258,1749253304435,10000.0,0.00016,10]
[364818259,1749253354184,2157.69740793,0.00018,2]
[364818260,1749253354209,7842.30259207,0.00018,2]
[364818262,1749253546085,5000.0,0.00018,2]
[364818263,1749253590560,1291.9085045,0.0002465,120]
[364818264,1749253650132,-331.15247,0.00018076,2]
[364818265,1749253650156,-150.0,0.00018104,2]
[364818266,1749253650178,-214.91698531,0.00018157,2]
[364818269,1749253745192,-1648.90637792,0.00018157,2]
[364818270,1749253772163,-1304.99393917,0.00018157,2]
[364818271,1749253772185,-214.2962837,0.00018263,2]
[364818272,1749253772207,-496.1788157,0.00018492,2]
[364818273,1749253772229,-161.71892849,0.00019078,2]
[364818274,1749253772250,-300.0,0.00019165,2]
[364818275,1749253772271,-1558.05818501,0.00019166,2]
[364818320,1749253832295,-300.0,0.00019165,2]
[364818322,1749253832306,-300.0,0.00019165,2]
[364818324,1749253832317,-1200.0,0.00019165,2]
[364818326,1749253832327,-160.0,0.00019174,2]
[364818328,1749253832337,-300.0,0.00019177,2]
[364818330,1749253832347,-296.39001082,0.00019177,2]
[364818333,1749253832357,-430.0,0.00019178,2]
[364818335,1749253832367,-440.0,0.00019178,2]
[364818337,1749253832377,-440.0,0.00019178,2]
[364818339,1749253832387,-430.0,0.00019178,2]
[364818341,1749253832397,-430.0,0.00019178,2]
[364818343,1749253832406,-500.0,0.00019178,2]
[364818345,1749253832416,-430.0,0.00019178,2]
[364818347,1749253832425,-430.0,0.00019178,2]
[364818349,1749253832436,-430.0,0.00019178,2]
[364818351,1749253832445,-256.71,0.00019178,2]
[364818353,1749253832455,-430.0,0.00019178,2]
[364818355,1749253832464,-430.0,0.00019178,2]
[364818358,1749253832474,-430.0,0.00019178,2]
[364818361,1749253832484,-430.0,0.00019178,2]
[364818364,1749253832493,-430.0,0.00019178,2]
[364818367,1749253832503,-490.0,0.00019178,2]
[364818370,1749253832513,-430.0,0.00019178,2]
[364818373,1749253832523,-440.0,0.00019178,2]
[364818376,1749253832532,-430.0,0.00019178,2]
[364818379,1749253832542,-430.0,0.00019178,2]
[364818382,1749253832551,-410.0,0.00019178,2]
[364818385,1749253832560,-430.0,0.00019178,2]
[364818388,1749253832569,-410.0,0.00019178,2]
[364818391,1749253832580,-440.0,0.00019178,2]
[364818394,1749253832589,-500.0,0.00019178,2]
[364818397,1749253832599,-500.0,0.00019178,2]
[364818400,1749253832608,-430.0,0.00019178,2]
[364818403,1749253832618,-430.0,0.00019178,2]
[364818406,1749253832627,-430.0,0.00019178,2]
[364818409,1749253832637,-430.0,0.00019178,2]
[364818411,1749253832647,-430.0,0.00019178,2]
[364818413,1749253832656,-430.0,0.00019178,2]
[364818415,1749253832667,-430.0,0.00019178,2]
[364818417,1749253832676,-430.0,0.00019178,2]
[364818419,1749253832686,-410.0,0.00019178,2]
[364818421,1749253832696,-430.0,0.00019178,2]
[364818422,1749253832705,-430.0,0.00019178,2]
[364818423,1749253832715,-430.0,0.00019178,2]
[364818424,1749253832725,-440.0,0.00019178,2]
[364818425,1749253832734,-402.51580347,0.00019178,2]
[364818426,1749253832744,-440.0,0.00019178,2]
[364818427,1749253832753,-440.0,0.00019178,2]
[364818428,1749253832763,-400.0,0.00019178,2]
[364818429,1749253832772,-440.0,0.00019178,2]
[364818430,1749253832782,-440.0,0.00019178,2]
[364818431,1749253832791,-430.0,0.00019178,2]
[364818432,1749253832801,-440.0,0.00019178,2]
[364818433,1749253832811,-430.0,0.00019178,2]
[364818434,1749253832820,-430.0,0.00019178,2]
[364818435,1749253832829,-440.0,0.00019178,2]
[364818436,1749253832839,-430.0,0.00019178,2]
[364818437,1749253832848,-412.19491668,0.00019178,2]
[364818438,1749253832857,-430.0,0.00019178,2]
[364818439,1749253832866,-430.0,0.00019178,2]
[364818440,1749253832875,-430.0,0.00019178,2]
[364818441,1749253832885,-440.0,0.00019178,2]
[364818442,1749253832894,-430.0,0.00019178,2]
[364818443,1749253832907,-430.0,0.00019178,2]
[364818444,1749253832917,-489.92776016,0.00019178,2]
[364818445,1749253832927,-440.0,0.00019178,2]
[364818446,1749253832936,-404.02215706,0.00019178,2]
[364818447,1749253832946,-440.0,0.00019178,2]
[364818448,1749253832955,-466.07571363,0.00019178,2]
[364818449,1749253832965,-430.0,0.00019178,2]
[364818450,1749253832975,-384.9620667,0.00019178,2]
[364818451,1749253832986,-430.0,0.00019178,2]
[364818452,1749253832996,-440.0,0.00019178,2]
[364818453,1749253833005,-440.0,0.00019178,2]
[364818454,1749253833018,-440.0,0.00019178,2]
[364818455,1749253833028,-430.0,0.00019178,2]
[364818456,1749253833038,-547.54182785,0.00019178,2]
[364818457,1749253833047,-430.0,0.00019178,2]
[364818458,1749253833056,-373.52021058,0.00019178,2]
[364818459,1749253833067,-430.0,0.00019178,2]
[364818461,1749253833077,-440.0,0.00019178,2]
[364818463,1749253833086,-430.0,0.00019178,2]
[364818465,1749253833095,-440.0,0.00019178,2]
[364818467,1749253833105,-440.0,0.00019178,2]
[364818469,1749253833114,-430.0,0.00019178,2]
[364818471,1749253833123,-440.0,0.00019178,2]
[364818473,1749253833133,-509.7678836,0.00019178,2]
[364818475,1749253833143,-440.0,0.00019178,2]
[364818479,1749253833295,-390.93234264,0.00019178,2]
[364818480,1749253833306,-440.0,0.00019178,2]
[364818481,1749253833316,-430.0,0.00019178,2]
[364818482,1749253833327,-440.0,0.00019178,2]
[364818483,1749253833337,-500.0,0.00019178,2]
[364818484,1749253833347,-440.0,0.00019178,2]
[364818485,1749253833357,-440.0,0.00019178,2]
[364818486,1749253833367,-375.2185052,0.00019178,2]
[364818487,1749253833377,-440.0,0.00019178,2]
[364818488,1749253833387,-303.49,0.00019178,2]
[364818489,1749253833397,-440.0,0.00019178,2]
[364818490,1749253833407,-430.0,0.00019178,2]
[364818491,1749253833418,-470.0,0.00019178,2]
[364818492,1749253833428,-332.31697522,0.00019178,2]
[364818493,1749253833438,-430.0,0.00019178,2]
[364818494,1749253833448,-450.0,0.00019178,2]
[364818495,1749253833458,-443.92309113,0.00019178,2]
[364818496,1749253833468,-430.0,0.00019178,2]
[364818497,1749253833477,-440.0,0.00019178,2]
[364818498,1749253833487,-430.0,0.00019178,2]
[364818499,1749253833497,-430.0,0.00019178,2]
[364818500,1749253833506,-440.0,0.00019178,2]
[364818501,1749253833517,-296.87,0.00019178,2]
[364818502,1749253833526,-430.0,0.00019178,2]
[364818503,1749253833535,-440.0,0.00019178,2]
[364818504,1749253833545,-440.0,0.00019178,2]
[364818505,1749253833555,-500.0,0.00019178,2]
[364818506,1749253833565,-440.0,0.00019178,2]
[364818507,1749253833575,-440.0,0.00019178,2]
[364818508,1749253833585,-370.0,0.00019178,2]
[364818509,1749253833594,-440.0,0.00019178,2]
[364818510,1749253833603,-430.0,0.00019178,2]
[364818511,1749253833613,-430.0,0.00019178,2]
[364818512,1749253833623,-430.0,0.00019178,2]
[364818513,1749253833632,-440.0,0.00019178,2]
[364818514,1749253833642,-430.0,0.00019178,2]
[364818515,1749253833652,-430.0,0.00019178,2]
[364818516,1749253833662,-440.0,0.00019178,2]
[364818517,1749253833671,-430.0,0.00019178,2]
[364818518,1749253833680,-1000.0,0.00019178,2]
[364818519,1749253833690,-430.0,0.00019178,2]
[364818520,1749253833700,-430.0,0.00019178,2]
[364818521,1749253833709,-430.0,0.00019178,2]
[364818522,1749253833719,-430.0,0.00019178,2]
[364818523,1749253833728,-440.0,0.00019178,2]
[364818524,1749253833738,-430.0,0.00019178,2]
[364818525,1749253833747,-430.0,0.00019178,2]
[364818526,1749253833757,-424.27285031,0.00019178,2]
[364818527,1749253833767,-430.0,0.00019178,2]
[364818528,1749253833777,-430.0,0.00019178,2]
[364818529,1749253833786,-430.0,0.00019178,2]
[364818530,1749253833794,-430.0,0.00019178,2]
[364818531,1749253833804,-430.0,0.00019178,2]
[364818532,1749253833813,-450.0,0.00019178,2]
[364818533,1749253833822,-279.97918446,0.00019178,2]
[364818534,1749253833831,-430.0,0.00019178,2]
[364818535,1749253833841,-430.0,0.00019178,2]
[364818536,1749253833850,-565.79789111,0.00019178,2]
[364818537,1749253833860,-430.0,0.00019178,2]
[364818538,1749253833869,-430.0,0.00019178,2]
[364818539,1749253833879,-440.0,0.00019178,2]
[364818540,1749253833889,-440.0,0.00019178,2]
[364818541,1749253833898,-430.0,0.00019178,2]
[364818542,1749253833910,-430.0,0.00019178,2]
[364818543,1749253833920,-430.0,0.00019178,2]
[364818544,1749253833930,-440.0,0.00019178,2]
[364818545,1749253833940,-430.0,0.00019178,2]
[364818546,1749253833950,-445.52632558,0.00019178,2]
[364818547,1749253833960,-430.0,0.00019178,2]
[364818548,1749253833970,-440.0,0.00019178,2]
[364818549,1749253833980,-430.0,0.00019178,2]
[364818550,1749253833990,-350.80488444,0.00019178,2]
[364818551,1749253834000,-430.0,0.00019178,2]
[364818552,1749253834010,-430.0,0.00019178,2]
[364818553,1749253834019,-451.08331362,0.00019178,2]
[364818554,1749253834028,-440.0,0.00019178,2]
[364818555,1749253834037,-430.0,0.00019178,2]
[364818556,1749253834047,-440.0,0.00019178,2]
[364818557,1749253834057,-440.0,0.00019178,2]
[364818558,1749253834067,-430.0,0.00019178,2]
[364818559,1749253834077,-430.0,0.00019178,2]
[364818560,1749253834086,-430.0,0.00019178,2]
[364818561,1749253834096,-420.50975044,0.00019178,2]
[364818562,1749253834105,-430.0,0.00019178,2]
[364818563,1749253834115,-430.0,0.00019178,2]
[364818564,1749253834124,-430.0,0.00019178,2]
[364818565,1749253834134,-500.0,0.00019178,2]
[364818566,1749253834143,-430.0,0.00019178,2]
[364818567,1749253834153,-430.0,0.00019178,2]
[364818568,1749253834163,-440.0,0.00019178,2]
[364818569,1749253834172,-430.0,0.00019178,2]
[364818570,1749253834182,-440.0,0.00019178,2]
[364818571,1749253834191,-440.0,0.00019178,2]
[364818572,1749253834204,-450.0,0.00019178,2]
[364818573,1749253834214,-440.0,0.00019178,2]
[364818574,1749253834223,-430.0,0.00019178,2]
[364818575,1749253834233,-440.0,0.00019178,2]
[364818576,1749253834243,-430.0,0.00019178,2]
[364818577,1749253834252,-207.6195247,0.00019178,2]
[364818578,1749253834262,-430.0,0.00019178,2]
[364818579,1749253834271,-450.0,0.00019178,2]
[364818580,1749253834281,-440.0,0.00019178,2]
[364818581,1749253834290,-440.0,0.00019178,2]
[364818582,1749253834300,-440.0,0.00019178,2]
[364818583,1749253834310,-440.0,0.00019178,2]
[364818584,1749253834320,-443.07922437,0.00019178,2]
[364818585,1749253834329,-451.20599261,0.00019178,2]
[364818586,1749253834339,-430.0,0.00019178,2]
[364818587,1749253834348,-430.0,0.00019178,2]
[364818588,1749253834358,-430.0,0.00019178,2]
[364818589,1749253834367,-440.0,0.00019178,2]
[364818590,1749253834376,-430.0,0.00019178,2]
[364818591,1749253834386,-451.05281378,0.00019178,2]
[364818592,1749253834395,-356.76278082,0.00019178,2]
[364818593,1749253834413,-73.23721918,0.00019178,2]
[364818594,1749253834422,-440.0,0.00019178,2]
[364818595,1749253834431,-186.61878082,0.00019178,2]
[364818596,1749253834447,-243.38121918,0.00019178,2]
[364818597,1749253834456,-430.0,0.00019178,2]
[364818598,1749253834465,-440.0,0.00019178,2]
[364818599,1749253834474,-433.6077534,0.00019178,2]
[364818600,1749253834484,-450.0,0.00019178,2]
[364818601,1749253834494,-440.0,0.00019178,2]
[364818602,1749253834503,-440.0,0.00019178,2]
[364818603,1749253834512,-539.12081235,0.00019178,2]
[364818604,1749253834522,-430.0,0.00019178,2]
[364818605,1749253834532,-706.83,0.00019178,2]
[364818606,1749253834541,-430.0,0.00019178,2]
[364818607,1749253834550,-440.0,0.00019178,2]
[364818608,1749253834559,-92.68021507,0.00019178,2]
[364818623,1749253838109,-6419.48061519,0.00019166,2]
[364818626,1749253838123,-9580.51938481,0.00019166,2]
[364818628,1749253838134,-14441.94181499,0.00019166,2]
[364818630,1749253838145,-337.31978493,0.00019178,2]
[364818632,1749253838155,-450.0,0.00019178,2]
[364818634,1749253838164,-440.0,0.00019178,2]
[364818637,1749253838176,-450.0,0.00019178,2]
[364818639,1749253838187,-440.0,0.00019178,2]
[364818641,1749253838197,-440.0,0.00019178,2]
[364818643,1749253838208,-447.84,0.00019178,2]
[364818645,1749253838219,-935.78,0.00019178,2]
[364818648,1749253838231,-430.0,0.00019178,2]
[364818650,1749253838243,-440.0,0.00019178,2]
[364818652,1749253838254,-440.0,0.00019178,2]
[364818654,1749253838264,-997.4,0.00019178,2]
[364818656,1749253838276,-440.0,0.00019178,2]
[364818659,1749253838288,-340.0,0.00019178,2]
[364818661,1749253838299,-440.0,0.00019178,2]
[364818663,1749253838311,-430.0,0.00019178,2]
[364818665,1749253838323,-430.0,0.00019178,2]
[364818668,1749253838335,-440.0,0.00019178,2]
[364818670,1749253838347,-440.0,0.00019178,2]
[364818672,1749253838357,-340.0,0.00019178,2]
[364818674,1749253838367,-440.0,0.00019178,2]
[364818676,1749253838377,-440.0,0.00019178,2]
[364818678,1749253838387,-269.97000075,0.00019178,2]
[364818680,1749253838398,-440.0,0.00019178,2]
[364818682,1749253838409,-430.0,0.00019178,2]
[364818684,1749253838419,-440.0,0.00019178,2]
[364818687,1749253838430,-440.0,0.00019178,2]
[364818689,1749253838443,-440.0,0.00019178,2]
[364818691,1749253838454,-440.0,0.00019178,2]
[364818693,1749253838465,-440.0,0.00019178,2]
[364818695,1749253838475,-430.0,0.00019178,2]
[364818697,1749253838485,-430.0,0.00019178,2]
[364818699,1749253838495,-430.0,0.00019178,2]
[364818701,1749253838505,-440.0,0.00019178,2]
[364818703,1749253838516,-440.0,0.00019178,2]
[364818705,1749253838527,-165.34009342,0.00019178,2]
[364818708,1749253838538,-289.92,0.00019178,2]
[364818710,1749253838548,-261.67755226,0.00019178,2]
[364818712,1749253838559,-440.0,0.00019178,2]
[364818714,1749253838569,-440.0,0.00019178,2]
[364818716,1749253838579,-440.0,0.00019178,2]
[364818718,1749253838589,-205.90855456,0.00019178,2]
[364818720,1749253838599,-440.0,0.00019178,2]
[364818722,1749253838609,-440.0,0.00019178,2]
[364818724,1749253838620,-430.0,0.00019178,2]
[364818726,1749253838630,-430.0,0.00019178,2]
[364818729,1749253838641,-430.0,0.00019178,2]
[364818731,1749253838652,-440.0,0.00019178,2]
[364818733,1749253838662,-440.0,0.00019178,2]
[364818735,1749253838673,-440.0,0.00019178,2]
[364818737,1749253838683,-440.0,0.00019178,2]
[364818739,1749253838693,-440.0,0.00019178,2]
[364818741,1749253838704,-440.0,0.00019178,2]
[364818744,1749253838714,-440.0,0.00019178,2]
[364818746,1749253838724,-440.0,0.00019178,2]
[364818748,1749253838733,-440.0,0.00019178,2]
[364818750,1749253838743,-440.0,0.00019178,2]
[364818752,1749253838753,-440.0,0.00019178,2]
[364818754,1749253838763,-440.0,0.00019178,2]
[364818756,1749253838773,-450.0,0.00019178,2]
[364818758,1749253838784,-430.0,0.00019178,2]
[364818760,1749253838795,-378.30002943,0.00019178,2]
[364818762,1749253838806,-440.0,0.00019178,2]
[364818765,1749253838816,-440.0,0.00019178,2]
[364818767,1749253838827,-430.0,0.00019178,2]
[364818769,1749253838837,-440.0,0.00019178,2]
[364818771,1749253838847,-430.0,0.00019178,2]
[364818773,1749253838858,-430.0,0.00019178,2]
[364818775,1749253838868,-430.0,0.00019178,2]
[364818777,1749253838880,-440.0,0.00019178,2]
[364818780,1749253838890,-430.0,0.00019178,2]
[364818782,1749253838901,-440.0,0.00019178,2]
[364818784,1749253838915,-430.0,0.00019178,2]
[364818786,1749253838926,-440.0,0.00019178,2]
[364818788,1749253838936,-962.98,0.00019178,2]
[364818790,1749253838948,-440.0,0.00019178,2]
[364818792,1749253838959,-440.0,0.00019178,2]
[364818794,1749253838969,-450.0,0.00019178,2]
[364818796,1749253838982,-453.12221441,0.00019178,2]
[364818798,1749253838993,-440.0,0.00019178,2]
[364818800,1749253839005,-430.0,0.00019178,2]
[364818802,1749253839015,-430.0,0.00019178,2]
[364818805,1749253839025,-300.0,0.00019178,2]
[364818807,1749253839036,-472.23,0.00019178,2]
[364818809,1749253839046,-440.0,0.00019178,2]
[364818811,1749253839056,-440.0,0.00019178,2]
[364818813,1749253839066,-453.32,0.00019178,2]
[364818815,1749253839077,-440.0,0.00019178,2]
[364818817,1749253839088,-440.0,0.00019178,2]
[364818820,1749253839101,-420.0,0.00019178,2]
[364818822,1749253839113,-430.0,0.00019178,2]
[364818824,1749253839123,-440.0,0.00019178,2]
[364818826,1749253839134,-440.0,0.00019178,2]
[364818828,1749253839144,-109.77017024,0.00019178,2]
[364819227,1749253843111,-330.22982976,0.00019178,2]
[364819229,1749253843120,-430.0,0.00019178,2]
[364819231,1749253843129,-440.0,0.00019178,2]
[364819233,1749253843139,-636.91,0.00019178,2]
[364819235,1749253843149,-320.0,0.00019178,2]
[364819237,1749253843158,-440.0,0.00019178,2]
[364819239,1749253843167,-440.0,0.00019178,2]
[364819241,1749253843176,-529.10878307,0.00019178,2]
[364819243,1749253843186,-440.0,0.00019178,2]
[364819245,1749253843195,-440.0,0.00019178,2]
[364819247,1749253843205,-430.0,0.00019178,2]
[364819249,1749253843214,-430.0,0.00019178,2]
[364819250,1749253843223,-430.0,0.00019178,2]
[364819253,1749253843234,-440.0,0.00019178,2]
[364819254,1749253843243,-440.0,0.00019178,2]
[364819257,1749253843253,-677.37,0.00019178,2]
[364819259,1749253843263,-440.0,0.00019178,2]
[364819260,1749253843272,-440.0,0.00019178,2]
[364819263,1749253843282,-365.00896838,0.00019247,2]
[364819265,1749253843292,-430.0,0.00019451,2]
[364819266,1749253843302,-500.0,0.00019451,2]
[364819268,1749253843312,-500.0,0.00019451,2]
[364819270,1749253843322,-443.25,0.00019451,2]
[364819273,1749253843332,-440.0,0.00019451,2]
[364819274,1749253843341,-440.0,0.00019451,2]
[364819276,1749253843351,-440.0,0.00019451,2]
[364819278,1749253843360,-440.0,0.00019451,2]
[364819280,1749253843369,-440.0,0.00019451,2]
[364819282,1749253843378,-440.0,0.00019451,2]
[364819284,1749253843388,-440.0,0.00019451,2]
[364819286,1749253843397,-440.0,0.00019451,2]
[364819288,1749253843407,-440.0,0.00019451,2]
[364819290,1749253843417,-512.42,0.00019451,2]
[364819292,1749253843427,-440.0,0.00019451,2]
[364819294,1749253843437,-1013.37,0.00019451,2]
[364819296,1749253843446,-440.0,0.00019451,2]
[364819298,1749253843456,-440.0,0.00019451,2]
[364819301,1749253843466,-358.14577533,0.00019452,2]
[364819302,1749253843475,-420.0,0.00019452,2]
[364819305,1749253843486,-440.0,0.00019452,2]
[364819306,1749253843496,-440.0,0.00019452,2]
[364819308,1749253843505,-440.0,0.00019452,2]
[364819310,1749253843515,-440.0,0.00019452,2]
[364819313,1749253843525,-430.0,0.00019452,2]
[364819315,1749253843535,-440.0,0.00019452,2]
[364819317,1749253843545,-430.0,0.00019452,2]
[364819318,1749253843555,-430.0,0.00019452,2]
[364819320,1749253843565,-430.0,0.00019452,2]
[364819323,1749253843574,-150.3466422,0.00019452,2]
[364819324,1749253843584,-430.0,0.00019452,2]
[364819326,1749253843593,-430.0,0.00019452,2]
[364819328,1749253843602,-430.0,0.00019452,2]
[364819330,1749253843611,-420.0,0.00019452,2]
[364819332,1749253843621,-430.0,0.00019452,2]
[364819334,1749253843631,-430.0,0.00019452,2]
[364819337,1749253843641,-430.0,0.00019452,2]
[364819338,1749253843650,-440.0,0.00019452,2]
[364819340,1749253843660,-430.0,0.00019452,2]
[364819343,1749253843671,-430.0,0.00019452,2]
[364819345,1749253843681,-935.78,0.00019452,2]
[364819346,1749253843691,-526.88429869,0.00019452,2]
[364819348,1749253843700,-997.4,0.00019452,2]
[364819351,1749253843710,-338.63345888,0.00019452,2]
[364819353,1749253843726,-91.36654112,0.00019452,2]
[364819355,1749253843735,-440.0,0.00019452,2]